[Event "Early-Titled-Tuesday-Blitz-October-10-2023"]
[Site "Chess.com"]
[Date "2023.10.10"]
[Round "6"]
[White "ama18"]
[Black "GaiozNigalidze"]
[Result "0-1"]
[WhiteElo "2548"]
[BlackElo "2713"]
[TimeControl "180+1"]
[EndTime "9:06:20 PDT"]
[Termination "GaiozNigalidze won by resignation"]

1. e4 {[%clk 0:02:28.5]} 1... c5 {[%clk 0:02:59.8]} 2. Nc3 {[%clk 0:02:27.7]}
2... Nc6 {[%clk 0:02:59.7]} 3. Bb5 {[%clk 0:02:27]} 3... g6 {[%clk 0:02:58.6]}
4. Bxc6 {[%clk 0:01:54.7]} 4... bxc6 {[%clk 0:02:59.5]} 5. d4 {[%clk 0:01:45.3]}
5... Bg7 {[%clk 0:02:52.4]} 6. dxc5 {[%clk 0:01:46.2]} 6... Qa5 {[%clk
0:02:50.8]} 7. Bd2 {[%clk 0:01:44.2]} 7... Qxc5 {[%clk 0:02:48.9]} 8. Nf3 {[%clk
0:01:43.5]} 8... d6 {[%clk 0:02:40.4]} 9. O-O {[%clk 0:01:40.5]} 9... Nf6 {[%clk
0:02:31.1]} 10. Re1 {[%clk 0:01:40.1]} 10... Bg4 {[%clk 0:02:24.8]} 11. h3
{[%clk 0:01:37.2]} 11... Bxf3 {[%clk 0:02:25.1]} 12. Qxf3 {[%clk 0:01:38]} 12...
O-O {[%clk 0:02:25.4]} 13. b3 {[%clk 0:01:25.7]} 13... Nd7 {[%clk 0:02:20.8]}
14. Rac1 {[%clk 0:01:24.9]} 14... Ne5 {[%clk 0:02:05.9]} 15. Qg3 {[%clk
0:01:24.3]} 15... Qa3 {[%clk 0:01:53.4]} 16. f4 {[%clk 0:01:21]} 16... Nd7
{[%clk 0:01:52.5]} 17. Na4 {[%clk 0:01:14.9]} 17... Nb6 {[%clk 0:01:28.9]} 18.
Nc3 {[%clk 0:00:45.4]} 18... a5 {[%clk 0:01:15.2]} 19. e5 {[%clk 0:00:35.4]}
19... a4 {[%clk 0:01:15.4]} 20. Kh2 {[%clk 0:00:28]} 20... Qc5 {[%clk
0:01:03.1]} 21. Ne4 {[%clk 0:00:27]} 21... Qd5 {[%clk 0:00:54.5]} 22. c4 {[%clk
0:00:26.9]} 22... Qe6 {[%clk 0:00:54.9]} 23. exd6 {[%clk 0:00:26.4]} 23... exd6
{[%clk 0:00:53.1]} 24. Bc3 {[%clk 0:00:20.8]} 24... Bxc3 {[%clk 0:00:32.3]} 25.
Qxc3 {[%clk 0:00:21.7]} 25... f6 {[%clk 0:00:33]} 26. Qd4 {[%clk 0:00:13.3]}
26... Nc8 {[%clk 0:00:33.2]} 27. Ng5 {[%clk 0:00:08.6]} 27... Qf5 {[%clk
0:00:25.8]} 28. g4 {[%clk 0:00:06.6]} 28... Qd7 {[%clk 0:00:23.8]} 29. Ne6
{[%clk 0:00:06.6]} 29... Rf7 {[%clk 0:00:21.6]} 30. f5 {[%clk 0:00:06.8]} 30...
axb3 {[%clk 0:00:20.9]} 31. axb3 {[%clk 0:00:06.4]} 31... Ne7 {[%clk 0:00:19.7]}
32. Ra1 {[%clk 0:00:05.3]} 32... Re8 {[%clk 0:00:08.6]} 33. c5 {[%clk
0:00:05.1]} 33... gxf5 {[%clk 0:00:08.1]} 34. gxf5 {[%clk 0:00:05.5]} 34... Nxf5
{[%clk 0:00:08.6]} 35. Qg4+ {[%clk 0:00:05.7]} 35... Ng7 {[%clk 0:00:06.9]} 36.
Nxg7 {[%clk 0:00:05.1]} 36... Qxg4 {[%clk 0:00:06.4]} 37. hxg4 {[%clk 0:00:06]}
37... Rxe1 {[%clk 0:00:05.8]} 38. Rxe1 {[%clk 0:00:06.7]} 38... Kxg7 {[%clk
0:00:06.3]} 39. cxd6 {[%clk 0:00:07.3]} 39... Rd7 {[%clk 0:00:06]} 40. Rd1
{[%clk 0:00:06.7]} 40... Kf7 {[%clk 0:00:06.1]} 41. Kg3 {[%clk 0:00:06.4]} 41...
Ke6 {[%clk 0:00:06.6]} 42. Kf4 {[%clk 0:00:04.9]} 42... Rxd6 {[%clk 0:00:07.1]}
43. Re1+ {[%clk 0:00:05.6]} 43... Kf7 {[%clk 0:00:07.4]} 44. Rc1 {[%clk
0:00:05.2]} 44... Kg6 {[%clk 0:00:07.4]} 45. Rc4 {[%clk 0:00:04.7]} 45... h6
{[%clk 0:00:06.5]} 46. b4 {[%clk 0:00:05.2]} 46... Re6 {[%clk 0:00:06.6]} 47.
Rc5 {[%clk 0:00:04.4]} 47... Rd6 {[%clk 0:00:06.4]} 48. Rc4 {[%clk 0:00:04.9]}
48... Kf7 {[%clk 0:00:06.9]} 49. Ke4 {[%clk 0:00:04]} 49... Re6+ {[%clk
0:00:06.5]} 50. Kf4 {[%clk 0:00:04.4]} 50... Ke7 {[%clk 0:00:06.5]} 51. Kg3
{[%clk 0:00:04.7]} 51... Kd6 {[%clk 0:00:04.4]} 52. Kh4 {[%clk 0:00:04.3]} 52...
Re5 {[%clk 0:00:05]} 53. Kg3 {[%clk 0:00:03.4]} 53... Rb5 {[%clk 0:00:05.1]} 54.
Kh4 {[%clk 0:00:02.7]} 54... Rd5 {[%clk 0:00:04.9]} 55. Rf4 {[%clk 0:00:02.8]}
55... Ke5 {[%clk 0:00:04.1]} 56. Rc4 {[%clk 0:00:02.9]} 56... Rd6 {[%clk
0:00:03.9]} 57. Rc5+ {[%clk 0:00:03.2]} 57... Kd4 {[%clk 0:00:04.2]} 58. Rf5
{[%clk 0:00:03.1]} 58... Kc4 {[%clk 0:00:04.2]} 59. Rf4+ {[%clk 0:00:02.8]}
59... Kb5 {[%clk 0:00:03.6]} 60. Kh5 {[%clk 0:00:02.6]} 60... Ka4 {[%clk
0:00:03.3]} 61. Rf5 {[%clk 0:00:02.9]} 61... Kxb4 {[%clk 0:00:03.1]} 62. Kxh6
{[%clk 0:00:03.8]} 62... c5 {[%clk 0:00:03.8]} 63. Kg6 {[%clk 0:00:04.7]} 63...
c4 {[%clk 0:00:04.3]} 64. Rf1 {[%clk 0:00:03.5]} 64... c3 {[%clk 0:00:04.6]} 65.
Rb1+ {[%clk 0:00:04.1]} 65... Kc4 {[%clk 0:00:04.8]} 66. Rb8 {[%clk 0:00:05]}
66... c2 {[%clk 0:00:04.7]} 67. Rc8+ {[%clk 0:00:05.1]} 67... Kd3 {[%clk
0:00:05.1]} 68. Kf7 {[%clk 0:00:04.9]} 68... Kd2 {[%clk 0:00:04.7]} 69. Ke7
{[%clk 0:00:03.9]} 69... Rd4 {[%clk 0:00:04.2]} 70. Rxc2+ {[%clk 0:00:03.9]}
70... Kxc2 {[%clk 0:00:04.2]} 71. Kxf6 {[%clk 0:00:04.2]} 71... Rxg4 {[%clk
0:00:04.4]} 0-1

[Event "Early-Titled-Tuesday-Blitz-October-10-2023"]
[Site "Chess.com"]
[Date "2023.10.10"]
[Round "6"]
[White "DopplerCharlotteDeWitte"]
[Black "ContrVersia"]
[Result "1/2-1/2"]
[WhiteElo "2755"]
[BlackElo "2893"]
[TimeControl "180+1"]
[EndTime "9:06:26 PDT"]
[Termination "Game drawn by repetition"]

1. e4 {[%clk 0:02:55]} 1... c5 {[%clk 0:02:52.7]} 2. Nf3 {[%clk 0:02:53.2]} 2...
a6 {[%clk 0:02:51.2]} 3. c4 {[%clk 0:02:52.7]} 3... Nc6 {[%clk 0:02:51.3]} 4. d4
{[%clk 0:02:52.9]} 4... cxd4 {[%clk 0:02:52.2]} 5. Nxd4 {[%clk 0:02:53.6]} 5...
e5 {[%clk 0:02:51.9]} 6. Nf5 {[%clk 0:02:50.8]} 6... d6 {[%clk 0:02:51.6]} 7.
Nc3 {[%clk 0:02:48.1]} 7... g6 {[%clk 0:02:50.9]} 8. Ne3 {[%clk 0:02:46.7]} 8...
Bh6 {[%clk 0:02:51]} 9. Be2 {[%clk 0:02:44.4]} 9... Be6 {[%clk 0:02:50.8]} 10.
O-O {[%clk 0:02:44.5]} 10... Nf6 {[%clk 0:02:50.8]} 11. Ned5 {[%clk 0:02:34.6]}
11... Bxc1 {[%clk 0:02:47.7]} 12. Rxc1 {[%clk 0:02:34.4]} 12... Nd4 {[%clk
0:02:47.4]} 13. f4 {[%clk 0:02:32.5]} 13... Bxd5 {[%clk 0:02:47.3]} 14. Nxd5
{[%clk 0:02:27.3]} 14... Nxd5 {[%clk 0:02:42.4]} 15. cxd5 {[%clk 0:02:25]} 15...
Qb6 {[%clk 0:02:42.3]} 16. Kh1 {[%clk 0:02:24.2]} 16... O-O {[%clk 0:02:35.8]}
17. fxe5 {[%clk 0:02:24]} 17... dxe5 {[%clk 0:02:36.1]} 18. b3 {[%clk
0:02:21.4]} 18... Rac8 {[%clk 0:02:35.8]} 19. Rxc8 {[%clk 0:02:15.6]} 19... Rxc8
{[%clk 0:02:35.4]} 20. Bg4 {[%clk 0:02:12.7]} 20... Rc2 {[%clk 0:02:27.7]} 21.
Qe1 {[%clk 0:01:42]} 21... Kg7 {[%clk 0:02:20.4]} 22. Qh4 {[%clk 0:01:36.8]}
22... f6 {[%clk 0:02:16.5]} 23. Be6 {[%clk 0:01:33.4]} 23... Qd8 {[%clk
0:02:16.5]} 24. a4 {[%clk 0:01:26.9]} 24... Nxe6 {[%clk 0:02:14]} 25. dxe6
{[%clk 0:01:26.8]} 25... Rc6 {[%clk 0:02:14.2]} 26. Qg4 {[%clk 0:01:18.1]} 26...
h5 {[%clk 0:02:08]} 27. Qd1 {[%clk 0:01:17.8]} 27... Rd6 {[%clk 0:02:01.9]} 28.
Qe2 {[%clk 0:01:13.2]} 28... Rxe6 {[%clk 0:02:01.9]} 29. h3 {[%clk 0:01:13.8]}
29... Rd6 {[%clk 0:01:59.5]} 30. Rc1 {[%clk 0:01:13.7]} 30... Rd2 {[%clk
0:01:55.5]} 31. Qc4 {[%clk 0:01:13]} 31... Rd1+ {[%clk 0:01:55]} 32. Rxd1 {[%clk
0:01:11.2]} 32... Qxd1+ {[%clk 0:01:55.9]} 33. Kh2 {[%clk 0:01:11.8]} 33... Qd7
{[%clk 0:01:50.7]} 34. a5 {[%clk 0:01:09.9]} 34... Qc6 {[%clk 0:01:44.4]} 35.
Qb4 {[%clk 0:01:07.5]} 35... Qc7 {[%clk 0:01:44.5]} 36. h4 {[%clk 0:01:05.4]}
36... f5 {[%clk 0:01:37]} 37. exf5 {[%clk 0:01:03]} 37... gxf5 {[%clk
0:01:33.9]} 38. Kh3 {[%clk 0:01:03.3]} 38... Qd7 {[%clk 0:01:31.4]} 39. Kh2
{[%clk 0:00:59.7]} 39... Qc7 {[%clk 0:01:25]} 40. Kh3 {[%clk 0:00:59.2]} 40...
e4 {[%clk 0:01:15.5]} 41. Qd4+ {[%clk 0:00:58.8]} 41... Kg6 {[%clk 0:01:11.4]}
42. Qh8 {[%clk 0:00:56.5]} 42... Qe7 {[%clk 0:01:08]} 43. Qg8+ {[%clk
0:00:53.8]} 43... Kh6 {[%clk 0:01:08]} 44. Qh8+ {[%clk 0:00:53.3]} 44... Kg6
{[%clk 0:01:06.2]} 45. Qg8+ {[%clk 0:00:53.6]} 45... Qg7 {[%clk 0:00:51.3]} 46.
Qe6+ {[%clk 0:00:52.8]} 46... Qf6 {[%clk 0:00:51.5]} 47. Qd7 {[%clk 0:00:45.8]}
47... Qc3+ {[%clk 0:00:47.6]} 48. g3 {[%clk 0:00:42.5]} 48... Qc6 {[%clk
0:00:34.6]} 49. Qe7 {[%clk 0:00:40.3]} 49... Qf6 {[%clk 0:00:22.6]} 50. Qxb7
{[%clk 0:00:40.3]} 50... Qa1 {[%clk 0:00:08.1]} 51. Qxa6+ {[%clk 0:00:36.4]}
51... Kf7 {[%clk 0:00:08.5]} 52. Qb7+ {[%clk 0:00:35.5]} 52... Ke6 {[%clk
0:00:08.6]} 53. Qc6+ {[%clk 0:00:35.2]} 53... Ke5 {[%clk 0:00:08.7]} 54. Qc7+
{[%clk 0:00:35.4]} 54... Ke6 {[%clk 0:00:09]} 55. Qc8+ {[%clk 0:00:34.3]} 55...
Ke7 {[%clk 0:00:06.9]} 56. Qc5+ {[%clk 0:00:31.1]} 56... Ke6 {[%clk 0:00:06.9]}
57. Qc4+ {[%clk 0:00:28.7]} 57... Ke5 {[%clk 0:00:06.7]} 58. Qc7+ {[%clk
0:00:19.8]} 58... Ke6 {[%clk 0:00:06.7]} 59. Qb6+ {[%clk 0:00:18.8]} 59... Ke7
{[%clk 0:00:06.1]} 60. Qb4+ {[%clk 0:00:15.5]} 60... Ke6 {[%clk 0:00:05.3]} 61.
Qc4+ {[%clk 0:00:15.9]} 61... Ke7 {[%clk 0:00:05.6]} 62. Qc5+ {[%clk 0:00:12.4]}
62... Ke6 {[%clk 0:00:05.9]} 63. Kg2 {[%clk 0:00:09.2]} 63... Qb2+ {[%clk
0:00:05.9]} 64. Qf2 {[%clk 0:00:08.8]} 64... Qxb3 {[%clk 0:00:06.2]} 65. Qe2
{[%clk 0:00:05.9]} 65... Qa3 {[%clk 0:00:04.6]} 66. a6 {[%clk 0:00:06]} 66...
Ke5 {[%clk 0:00:04.7]} 67. Kh2 {[%clk 0:00:05.1]} 67... Qa5 {[%clk 0:00:03.7]}
68. Qxh5 {[%clk 0:00:03.7]} 68... Qxa6 {[%clk 0:00:03.4]} 69. Qh8+ {[%clk
0:00:04]} 69... Kd5 {[%clk 0:00:03.3]} 70. Qd8+ {[%clk 0:00:04.3]} 70... Kc4
{[%clk 0:00:03.4]} 71. Qd2 {[%clk 0:00:04]} 71... Qa3 {[%clk 0:00:02.7]} 72. h5
{[%clk 0:00:03.6]} 72... e3 {[%clk 0:00:03]} 73. Qe2+ {[%clk 0:00:03]} 73... Qd3
{[%clk 0:00:03.1]} 74. Qxd3+ {[%clk 0:00:02.2]} 74... Kxd3 {[%clk 0:00:04]} 75.
h6 {[%clk 0:00:02.6]} 75... e2 {[%clk 0:00:04.9]} 76. h7 {[%clk 0:00:03.2]}
76... e1=Q {[%clk 0:00:05.6]} 77. h8=Q {[%clk 0:00:04]} 77... Qe2+ {[%clk
0:00:05.5]} 78. Kh3 {[%clk 0:00:03.9]} 78... Qg4+ {[%clk 0:00:06.2]} 79. Kg2
{[%clk 0:00:04.1]} 79... Qe2+ {[%clk 0:00:06.6]} 80. Kg1 {[%clk 0:00:04.6]}
80... Qe1+ {[%clk 0:00:06.5]} 81. Kg2 {[%clk 0:00:05.1]} 81... Qe2+ {[%clk
0:00:07.4]} 82. Kg1 {[%clk 0:00:05.7]} 82... Qe1+ {[%clk 0:00:08]} 83. Kg2
{[%clk 0:00:06]} 83... Qe2+ {[%clk 0:00:08.9]} 1/2-1/2

[Event "Early-Titled-Tuesday-Blitz-October-10-2023"]
[Site "Chess.com"]
[Date "2023.10.10"]
[Round "6"]
[White "elprimo2012mortis"]
[Black "WindWhistler11"]
[Result "1-0"]
[WhiteElo "2642"]
[BlackElo "2469"]
[TimeControl "180+1"]
[EndTime "9:06:36 PDT"]
[Termination "elprimo2012mortis won by resignation"]

1. e4 {[%clk 0:03:00.9]} 1... e6 {[%clk 0:02:57.5]} 2. d4 {[%clk 0:03:00.8]}
2... d5 {[%clk 0:02:57.4]} 3. Nd2 {[%clk 0:03:01.5]} 3... Nc6 {[%clk 0:02:56.6]}
4. Ngf3 {[%clk 0:03:00.3]} 4... Nf6 {[%clk 0:02:56.9]} 5. e5 {[%clk 0:03:00.5]}
5... Nd7 {[%clk 0:02:57.6]} 6. c3 {[%clk 0:02:59.3]} 6... f6 {[%clk 0:02:57.2]}
7. exf6 {[%clk 0:02:51.4]} 7... Qxf6 {[%clk 0:02:57.7]} 8. Bb5 {[%clk
0:02:46.9]} 8... Bd6 {[%clk 0:02:55.8]} 9. Nf1 {[%clk 0:02:44.5]} 9... O-O
{[%clk 0:02:29.3]} 10. Bg5 {[%clk 0:02:42.5]} 10... Qf7 {[%clk 0:02:26.9]} 11.
Ne3 {[%clk 0:02:39]} 11... a6 {[%clk 0:02:15.6]} 12. Ba4 {[%clk 0:02:19.7]}
12... e5 {[%clk 0:02:03.3]} 13. Bb3 {[%clk 0:02:17.4]} 13... Nb6 {[%clk
0:01:55.4]} 14. Qe2 {[%clk 0:01:43.1]} 14... e4 {[%clk 0:01:39.2]} 15. Nd2
{[%clk 0:01:41.9]} 15... Be6 {[%clk 0:01:36.2]} 16. Bh4 {[%clk 0:01:39]} 16...
Ne7 {[%clk 0:01:22.1]} 17. Bg3 {[%clk 0:01:34.7]} 17... Ng6 {[%clk 0:01:11.4]}
18. O-O-O {[%clk 0:01:15.8]} 18... Nf4 {[%clk 0:01:02.7]} 19. Bxf4 {[%clk
0:01:14.4]} 19... Bxf4 {[%clk 0:01:03.4]} 20. Rdf1 {[%clk 0:01:11]} 20... a5
{[%clk 0:00:59.8]} 21. a3 {[%clk 0:01:09.5]} 21... a4 {[%clk 0:00:56.9]} 22. Ba2
{[%clk 0:01:09.9]} 22... Nc8 {[%clk 0:00:44.4]} 23. Kb1 {[%clk 0:01:07.3]} 23...
c6 {[%clk 0:00:42.7]} 24. f3 {[%clk 0:01:05.2]} 24... exf3 {[%clk 0:00:32.9]}
25. Rxf3 {[%clk 0:01:01.7]} 25... Qg6+ {[%clk 0:00:10.4]} 26. Ka1 {[%clk
0:01:01.3]} 26... Nd6 {[%clk 0:00:10]} 27. Bb1 {[%clk 0:00:58.1]} 27... Qh6
{[%clk 0:00:08.3]} 28. Rhf1 {[%clk 0:00:38.8]} 28... Rae8 {[%clk 0:00:07.2]} 29.
Qf2 {[%clk 0:00:24.9]} 29... g5 {[%clk 0:00:02.7]} 30. g3 {[%clk 0:00:22.7]}
30... Bxe3 {[%clk 0:00:03]} 31. Qxe3 {[%clk 0:00:22.6]} 31... Bh3 {[%clk
0:00:02.6]} 32. Rxf8+ {[%clk 0:00:21.5]} 32... Rxf8 {[%clk 0:00:02.5]} 33. Rxf8+
{[%clk 0:00:21.1]} 33... Qxf8 {[%clk 0:00:02.4]} 34. Qxg5+ {[%clk 0:00:21.2]}
34... Qg7 {[%clk 0:00:02.1]} 35. Qd8+ {[%clk 0:00:20.8]} 35... Qf8 {[%clk
0:00:02.8]} 36. Qg5+ {[%clk 0:00:19.3]} 36... Qg7 {[%clk 0:00:03]} 37. Qh4
{[%clk 0:00:18.6]} 37... Bf5 {[%clk 0:00:02.5]} 38. Qd8+ {[%clk 0:00:15.5]}
38... Qf8 {[%clk 0:00:02.7]} 39. Qg5+ {[%clk 0:00:15.3]} 39... Qg7 {[%clk
0:00:02.9]} 40. Qf4 {[%clk 0:00:13.9]} 40... Bxb1 {[%clk 0:00:02.6]} 41. Kxb1
{[%clk 0:00:14]} 41... Qg6+ {[%clk 0:00:02.8]} 42. Kc1 {[%clk 0:00:14.4]} 42...
Nf5 {[%clk 0:00:02.5]} 43. Nf3 {[%clk 0:00:13.9]} 43... Nd6 {[%clk 0:00:02.2]}
44. Ne5 {[%clk 0:00:13]} 44... Qe6 {[%clk 0:00:02.8]} 45. Qg5+ {[%clk 0:00:13]}
45... Kf8 {[%clk 0:00:03.5]} 46. Qf4+ {[%clk 0:00:12.3]} 46... Kg8 {[%clk
0:00:03.7]} 47. h4 {[%clk 0:00:12]} 47... Ne4 {[%clk 0:00:03.9]} 48. g4 {[%clk
0:00:11.1]} 48... Kg7 {[%clk 0:00:03.3]} 49. h5 {[%clk 0:00:11.2]} 49... h6
{[%clk 0:00:03.4]} 50. Kb1 {[%clk 0:00:09.8]} 50... c5 {[%clk 0:00:03.2]} 51.
dxc5 {[%clk 0:00:09.3]} 51... Qf6 {[%clk 0:00:01.7]} 52. Qxf6+ {[%clk
0:00:07.7]} 52... Kxf6 {[%clk 0:00:02.6]} 53. Nd7+ {[%clk 0:00:07.5]} 53... Kg5
{[%clk 0:00:03]} 54. Nb6 {[%clk 0:00:07]} 54... Nxc5 {[%clk 0:00:03.3]} 55. Nxd5
{[%clk 0:00:07.2]} 55... Kxg4 {[%clk 0:00:03.9]} 56. Nf6+ {[%clk 0:00:07.5]}
56... Kg5 {[%clk 0:00:04.6]} 57. Nd5 {[%clk 0:00:05.5]} 57... Kxh5 {[%clk
0:00:05.1]} 58. Kc2 {[%clk 0:00:05.1]} 58... Kg4 {[%clk 0:00:05.6]} 59. c4
{[%clk 0:00:05.8]} 59... h5 {[%clk 0:00:05.9]} 60. Nf6+ {[%clk 0:00:05.6]} 60...
Kg5 {[%clk 0:00:05.8]} 61. Nxh5 {[%clk 0:00:03.9]} 61... Kxh5 {[%clk 0:00:06]}
62. Kc3 {[%clk 0:00:04.8]} 62... Kg4 {[%clk 0:00:06]} 63. Kb4 {[%clk 0:00:05.4]}
63... b6 {[%clk 0:00:06.1]} 64. Kb5 {[%clk 0:00:05.7]} 64... Kf4 {[%clk
0:00:04.8]} 65. Kxb6 {[%clk 0:00:06]} 65... Nd3 {[%clk 0:00:05.5]} 66. c5 {[%clk
0:00:06]} 66... Nxb2 {[%clk 0:00:05.6]} 67. c6 {[%clk 0:00:06.6]} 67... Nc4+
{[%clk 0:00:06.3]} 68. Kc5 {[%clk 0:00:06.9]} 68... Ne5 {[%clk 0:00:05.3]} 69.
c7 {[%clk 0:00:07]} 69... Nd7+ {[%clk 0:00:05.3]} 70. Kc6 {[%clk 0:00:06]} 70...
Ne5+ {[%clk 0:00:04.1]} 71. Kb5 {[%clk 0:00:03.2]} 71... Nf7 {[%clk 0:00:03.8]}
72. Kc5 {[%clk 0:00:02.2]} 72... Ne5 {[%clk 0:00:03.2]} 73. c8=Q {[%clk
0:00:02.4]} 73... Nd3+ {[%clk 0:00:03.9]} 74. Kc4 {[%clk 0:00:02.5]} 74... Ne5+
{[%clk 0:00:04.8]} 75. Kb4 {[%clk 0:00:02.8]} 75... Ke4 {[%clk 0:00:05.7]} 76.
Qa8+ {[%clk 0:00:02.9]} 76... Ke3 {[%clk 0:00:06.2]} 77. Qxa4 {[%clk 0:00:03.6]}
77... Nd3+ {[%clk 0:00:07]} 78. Ka5 {[%clk 0:00:03.5]} 78... Ne5 {[%clk
0:00:07.9]} 79. Qb5 {[%clk 0:00:03.7]} 79... Ke4 {[%clk 0:00:08.8]} 80. a4
{[%clk 0:00:04.3]} 80... Kd4 {[%clk 0:00:09.5]} 81. Qxe5+ {[%clk 0:00:04.4]}
81... Kxe5 {[%clk 0:00:09.9]} 82. Kb6 {[%clk 0:00:05.3]} 82... Kd6 {[%clk
0:00:10.7]} 83. a5 {[%clk 0:00:05.9]} 83... Kd7 {[%clk 0:00:11.6]} 84. Kb7
{[%clk 0:00:06.6]} 84... Kd6 {[%clk 0:00:11.7]} 85. a6 {[%clk 0:00:07.5]} 1-0

[Event "Early-Titled-Tuesday-Blitz-October-10-2023"]
[Site "Chess.com"]
[Date "2023.10.10"]
[Round "7"]
[White "KorolDimitriy75"]
[Black "Amirreza_p"]
[Result "1/2-1/2"]
[WhiteElo "2412"]
[BlackElo "2597"]
[TimeControl "180+1"]
[EndTime "9:09:50 PDT"]
[Termination "Game drawn by repetition"]

1. d4 {[%clk 0:03:00.9]} 1... g6 {[%clk 0:03:00.1]} 2. c4 {[%clk 0:03:00.9]}
2... Bg7 {[%clk 0:03:00.8]} 3. Nf3 {[%clk 0:03:01.3]} 3... d6 {[%clk 0:03:01.5]}
4. Nc3 {[%clk 0:03:01.4]} 4... Nc6 {[%clk 0:03:01.9]} 5. e3 {[%clk 0:03:00.8]}
5... Bg4 {[%clk 0:03:00.9]} 6. Be2 {[%clk 0:03:00.4]} 6... e5 {[%clk 0:03:00.7]}
7. d5 {[%clk 0:03:00.6]} 7... Nce7 {[%clk 0:03:01.1]} 8. e4 {[%clk 0:03:01.1]}
8... f5 {[%clk 0:03:00.7]} 9. Ng5 {[%clk 0:03:00.2]} 9... Bxe2 {[%clk 0:02:59]}
10. Qxe2 {[%clk 0:03:01.1]} 10... Qd7 {[%clk 0:02:53]} 11. Ne6 {[%clk
0:03:00.5]} 11... Bh6 {[%clk 0:02:43.1]} 12. Nb5 {[%clk 0:02:51.8]} 12... Rc8
{[%clk 0:02:36]} 13. Nxa7 {[%clk 0:02:49.8]} 13... Ra8 {[%clk 0:02:36.6]} 14.
Nb5 {[%clk 0:02:49.7]} 14... Rc8 {[%clk 0:02:37.1]} 15. Na7 {[%clk 0:02:33.7]}
15... Ra8 {[%clk 0:02:36]} 16. Nb5 {[%clk 0:02:33.9]} 16... Rc8 {[%clk
0:02:36.3]} 17. Na7 {[%clk 0:02:33.9]} 1/2-1/2

[Event "Early-Titled-Tuesday-Blitz-October-10-2023"]
[Site "Chess.com"]
[Date "2023.10.10"]
[Round "7"]
[White "K_A_S_T_O_R"]
[Black "Jospem"]
[Result "1/2-1/2"]
[WhiteElo "2905"]
[BlackElo "3101"]
[TimeControl "180+1"]
[EndTime "9:09:52 PDT"]
[Termination "Game drawn by repetition"]

1. e4 {[%clk 0:03:00.9]} 1... c5 {[%clk 0:03:00.4]} 2. Nf3 {[%clk 0:03:00.7]}
2... d6 {[%clk 0:03:01.2]} 3. d4 {[%clk 0:03:01.1]} 3... cxd4 {[%clk 0:03:02.1]}
4. Nxd4 {[%clk 0:03:01.7]} 4... a6 {[%clk 0:03:01.6]} 5. c4 {[%clk 0:02:57.5]}
5... e6 {[%clk 0:03:02.2]} 6. Nc3 {[%clk 0:02:57.5]} 6... Nf6 {[%clk 0:03:03.1]}
7. Be2 {[%clk 0:02:58]} 7... b6 {[%clk 0:03:03.8]} 8. O-O {[%clk 0:02:58.6]}
8... Bb7 {[%clk 0:03:04.4]} 9. f3 {[%clk 0:02:59.1]} 9... Nbd7 {[%clk 0:03:05]}
10. Be3 {[%clk 0:02:58.4]} 10... Be7 {[%clk 0:03:05.6]} 11. Qd2 {[%clk
0:02:56.5]} 11... O-O {[%clk 0:03:05.8]} 12. a4 {[%clk 0:02:56.5]} 12... Qb8
{[%clk 0:03:06.4]} 13. Rfd1 {[%clk 0:02:49.4]} 13... Rc8 {[%clk 0:03:05.6]} 14.
Kh1 {[%clk 0:02:45.1]} 14... Bd8 {[%clk 0:03:02.6]} 15. Nc2 {[%clk 0:02:42.1]}
15... Bc7 {[%clk 0:03:02.6]} 16. Bf4 {[%clk 0:02:42.4]} 16... Ne5 {[%clk
0:02:44.2]} 17. Be3 {[%clk 0:02:28.9]} 17... Ned7 {[%clk 0:02:43.5]} 18. Bf4
{[%clk 0:02:28.6]} 18... Ne5 {[%clk 0:02:44]} 19. Be3 {[%clk 0:02:28.9]} 19...
Ned7 {[%clk 0:02:44.5]} 1/2-1/2

[Event "Early-Titled-Tuesday-Blitz-October-10-2023"]
[Site "Chess.com"]
[Date "2023.10.10"]
[Round "7"]
[White "kingapolak"]
[Black "Quattroporte300"]
[Result "0-1"]
[WhiteElo "2048"]
[BlackElo "2379"]
[TimeControl "180+1"]
[EndTime "9:09:52 PDT"]
[Termination "Quattroporte300 won by resignation"]

1. e4 {[%clk 0:03:00.9]} 1... c5 {[%clk 0:02:58.6]} 2. Nf3 {[%clk 0:03:00.5]}
2... Nc6 {[%clk 0:02:57.6]} 3. d4 {[%clk 0:03:00.7]} 3... cxd4 {[%clk
0:02:57.8]} 4. Nxd4 {[%clk 0:03:01.6]} 4... e5 {[%clk 0:02:57.7]} 5. Nb5 {[%clk
0:03:01.4]} 5... a6 {[%clk 0:02:55.2]} 6. N1c3 {[%clk 0:03:02]} 6... axb5 {[%clk
0:02:54.7]} 7. Nxb5 {[%clk 0:03:01.5]} 7... Nf6 {[%clk 0:02:54]} 8. Bd3 {[%clk
0:02:49.6]} 8... Bc5 {[%clk 0:02:50.3]} 9. O-O {[%clk 0:02:49.1]} 9... O-O
{[%clk 0:02:50.6]} 10. Bg5 {[%clk 0:02:45.4]} 10... h6 {[%clk 0:02:49.1]} 11.
Bh4 {[%clk 0:02:45]} 11... d6 {[%clk 0:02:46.4]} 12. Qf3 {[%clk 0:02:43.2]}
12... Nd4 {[%clk 0:02:45]} 13. Nxd4 {[%clk 0:02:38.4]} 13... Bxd4 {[%clk
0:02:44.9]} 14. c3 {[%clk 0:02:39]} 14... Bb6 {[%clk 0:02:41.6]} 15. Rfd1 {[%clk
0:02:38.6]} 15... g5 {[%clk 0:02:36.1]} 16. Bg3 {[%clk 0:02:37.7]} 16... Bg4
{[%clk 0:02:36.5]} 0-1

[Event "Early-Titled-Tuesday-Blitz-October-10-2023"]
[Site "Chess.com"]
[Date "2023.10.10"]
[Round "7"]
[White "howitzer14"]
[Black "JAN2404"]
[Result "1-0"]
[WhiteElo "3006"]
[BlackElo "2080"]
[TimeControl "180+1"]
[EndTime "9:10:56 PDT"]
[Termination "howitzer14 won by resignation"]

1. d4 {[%clk 0:03:00.9]} 1... Nf6 {[%clk 0:02:57.4]} 2. Bf4 {[%clk 0:02:52.3]}
2... e6 {[%clk 0:02:54.9]} 3. e3 {[%clk 0:02:51.3]} 3... d5 {[%clk 0:02:51.4]}
4. Nf3 {[%clk 0:02:48.6]} 4... c5 {[%clk 0:02:43.1]} 5. Nbd2 {[%clk 0:02:48.5]}
5... Nc6 {[%clk 0:02:41.9]} 6. c3 {[%clk 0:02:44.7]} 6... b6 {[%clk 0:02:34.7]}
7. Bd3 {[%clk 0:02:43.6]} 7... Bd6 {[%clk 0:02:28.1]} 8. Bg3 {[%clk 0:02:42.6]}
8... O-O {[%clk 0:02:24.4]} 9. Qe2 {[%clk 0:02:33.4]} 9... c4 {[%clk 0:02:09.4]}
10. Bc2 {[%clk 0:02:32.9]} 10... b5 {[%clk 0:01:54.9]} 11. e4 {[%clk 0:02:30.5]}
11... dxe4 {[%clk 0:01:46.6]} 12. Nxe4 {[%clk 0:02:31.4]} 12... Bxg3 {[%clk
0:01:41.3]} 13. hxg3 {[%clk 0:02:23.2]} 13... h6 {[%clk 0:01:38.4]} 14. Nxf6+
{[%clk 0:02:22.2]} 1-0